Workbook

Sheet 용역 원가계산서
A1: 용역비 원가계산서
A4: □ 용역명 : 경기도 대표도서관 건립사업 기본 및 실시설계 용역
A5: 구 분 | B5: 설계금액 | C5: 산출기준 | D5: 비고
A7: □ 실시설계비 | B7: =B8+B9 -> 3878799485
A8: 1. 경기도 대표도서관 | B8: ='1. 직선보간법(설계용역비 산출)'!O24 -> 3021898000 | C8: ='1. 직선보간법(설계용역비 산출)'!B17&"%" -> 5.174%
A9: 2. 추가인증업무비용 | B9: ='2. 추가인증업무비용'!I20 -> 856901485
A10: □ 손해배상공제료 | B10: =B12 -> 8073962.955
A11: 2. 손해배상공제료
A12: - 실시설계 | B12: ='3. 손해배상공제금액 산출'!M19 -> 8073962.955 | C12: 실시설계비 * 요율 | D12: 손해배상공제요율
A14: □ 공 급 가 액 | B14: =B10+B7 -> 3886873448
A15: □ 부 가 세 | B15: =B14*0.1 -> 388687344.8
A17: □ 공 급 가 액 + 부 가 세 | B17: =B14+B15 -> 4275560793
A19: 설계용역비 | B19: =ROUNDDOWN(B17,-6) -> 4275000000 | C19: 백만원미만절사

Sheet 1. 직선보간법(설계용역비 산출)
A1: 설계비 산출내역(직선보간법)
A3: □ 추정공사비
A4: ○ 총공사비(부가가치세 제외) : | G4: 64246000000 | I4: ÷ | J4: 1.1 | K4: = | L4: =TRUNC(G4/J4,-3) -> 58405454000 | P4: 원
A5: - 경기도 대표도서관 | G5: =G4 -> 64246000000 | I5: ÷ | J5: 1.1 | K5: = | L5: 58405454000 | P5: 원
A7: - 경기도 대표도서관 === > 설계비 요율 : 직선보간법(3종 복잡 상급 적용)
F8: ( | G8: x | I8: - | J8: x2 | L8: ) * | M8: ( | N8: y1 | O8: - | P8: y2 | Q8: )
B9: y | C9: = | D9: y1 | E9: - | F9: -------------------------------------------------------------------------------------------------------------------------------------------
J10: x1 | L10: - | M10: x2
B12: ※ | C12: y : | D12: 기본 및 실시설계요율 | J12: y1 : | K12: 작은금액요율 : | M12: 5.19
C13: x : | D13: 당 해 금 액 : | G13: =L5 -> 58405454000 | J13: y2 : | K13: 큰 금 액 요 율 : | M13: 5.1
C14: x1 : | D14: 큰 금 액 : | G14: 100000000000 | J14: x2 : | K14: 작 은 금 액 : | M14: 50000000000
F16: ( | G16: =G13 -> 58405454000 | I16: - | J16: =M14 -> 50000000000 | L16: ) * | M16: ( | N16: =M12 -> 5.19 | O16: - | P16: =M13 -> 5.1 | Q16: )
B17: =TRUNC(D17-(((G16-J16)*(N16-P16)/(H18-L18))),3) -> 5.174 | C17: = | D17: =M12 -> 5.19 | E17: - | F17: -------------------------------------------------------------------------------------------------------------------------------------------
B18: (적용요율) | H18: =G14 -> 100000000000 | K18: - | L18: =M14 -> 50000000000
A21: □ 설계금액
A22: ○ 설계금액 = 추정가격(부가가치세 제외) x 설계요율
A23: <기본 및 실시설계 설계>
A24: 경기도 대표도서관 | D24: =L5 -> 58405454000 | G24: (원) × | H24: =B17 -> 5.174 | J24: (%) | K24: × | L24: 1 | M24: = | O24: =TRUNC(D24*H24/100*L24,-3) -> 3021898000 | P24: 원

Sheet 2. 추가인증업무비용
A1: □ 각종 인증에 따른 추가업무비용
M2: 단위 : 원
B3: 구 분 | E3: 계 획 | G3: 업무대가 | I3: 적용률 | K3: 추가업무비용 | M3: 비 고
B4: 1. 녹색건축물물 인증 | E4: 최우수 | G4: 0.095 | I4: =G4+G5/2 -> 0.1325 | K4: =I4*'1. 직선보간법(설계용역비 산출)'!O24 -> 400401485
B5: 2. 에너지효율등급 인증 | E5: 1등급 | G5: 0.075
B7: * 추가설계대가 요율 = A + 1/2 B = 9.5 + 7.5/2 = 13.25% A : 친환경건축물, 지능형건축물, 에너지효율등급 인증관련 설계 추가요율 중 최상위값 = 9.5% B : 친환경건축물, 지능형건축물, 에너지효율등급 인증관련 설계 추가요율 중 차상위값 = 7.5% C : 친환경건축물, 지능형건축물, 에너지효율등급 인증관련 설계 추가요율 중 최하위값 = 7.0%
B9: 3. 지열시험천공 | D9: : | E9: 22000000 | G9: 원 | H9: (견적가, VAT제외)
B10: 4. 지반조사 | D10: : | E10: 25000000 | G10: 원 | H10: (견적가, VAT제외)
B11: 5. 설계안전성검토 | D11: : | E11: 9500000 | G11: 원 | H11: (견적가, VAT제외)
B12: 6. 에너지절약계획서 | D12: : | E12: 7000000 | G12: 원 | H12: (견적가, VAT제외)
B13: 7. BF 인증 | D13: : | E13: 15000000 | G13: 원 | H13: (견적가, VAT제외)
B14: 8. 제로에너지인증 | D14: : | E14: 17000000 | G14: 원 | H14: (견적가, VAT제외)
B15: 9. 성능위주설계 | D15: : | E15: 40000000 | G15: 원 | H15: (견적가, VAT제외)
B16: 10. 사전재난영향성 검토 | D16: : | E16: 90000000 | G16: 원 | H16: (견적가, VAT제외)
B17: 11. 입찰안내서 작성 | D17: : | E17: 20000000 | G17: 원 | H17: (견적가, VAT제외)
B18: 12. BIM 설계 | D18: : | E18: 211000000 | G18: 원 | H18: (견적가, VAT제외)
B20: ※ 추가 인증업무비용 | I20: =K4+SUM(E9:F18) -> 856901485 | J20: 원

Sheet 3. 손해배상공제금액 산출
A2: 손해배상공제요율
A4: ■ | B4: 기본 및 실시설계용역 | I4: ( | J4: 순계약금액 | N4: ='용역 원가계산서'!B7 -> 3878799485 | S4: 원)
A5: ■ | B5: 실시설계용역(용역비의 50%) | I5: ( | J5: 순계약금액 | N5: ='용역 원가계산서'!B7*50% -> 1939399742 | S5: 원) | V5: ( | W5: 용역기간 | AA5: 11개월 | AE5: )
A6: 구 분 | G6: 용역금액(계약금액)
G7: 5억원 이하 | M7: 5억원 초과 | S7: 10억원 초과 | Y7: 20억원 초과 | AE7: 30억원 초과 | AK7: 50억원 초과 | AQ7: 표준공사기간
M8: 10억원 이하 | S8: 20억원 이하 | Y8: 30억원 이하 | AE8: 50억원 이하 | AK8: 구득요율 적용
G9: 기본요율 | J9: 가산요율 | M9: 기본요율 | P9: 가산요율 | S9: 기본요율 | V9: 가산요율 | Y9: 기본요율 | AB9: 가산요율 | AE9: 기본요율 | AH9: 가산요율
A10: 관람집회시설공사 | G10: 0.432 | J10: 0.069 | M10: 0.42 | P10: 0.068 | S10: 0.406 | V10: 0.065 | Y10: 0.394 | AB10: 0.063 | AE10: 0.382 | AH10: 0.062 | AQ10: 3년
G11: 500000000 | M11: 500000000 | S11: =N5-G11-M11 -> 939399742.5 | Y11: =N5-S11-M11-G11 -> 0
A12: ■ 공제료 계산
A13: (산식) | D13: 순계약금액 × { 기본요율 ＋ ( 표준담보기간초과일수/365)}
B14: =G11 -> 500000000 | H14: ×{ | I14: =G10 -> 0.432 | L14: ＋( | M14: 0 | N14: ÷ | O14: 365 ) } | T14: = | U14: =B14*I14% -> 2160000
B15: =M11 -> 500000000 | H15: ×( | I15: =M10 -> 0.42 | L15: ＋( | M15: 0 | N15: ÷ | O15: 365 ) } | T15: = | U15: =B15*I15% -> 2100000
B16: =S11 -> 939399742.5 | H16: ×( | I16: =S10 -> 0.406 | L16: ＋( | M16: 0 | N16: ÷ | O16: 365 ) } | T16: = | U16: =B16*I16% -> 3813962.955
B17: =Y11 -> 0 | H17: ×( | I17: =Y10 -> 0.394 | L17: ＋( | M17: 0 | N17: ÷ | O17: 365 ) } | T17: = | U17: =B17*I17% -> 0
B18: =AE11 -> 0 | H18: ×( | I18: =AE10 -> 0.382 | L18: ＋( | M18: 0 | N18: ÷ | O18: 365 ) } | T18: = | U18: =B18*I18% -> 0
B19: 계 금 액 | M19: =SUM(U14:X18) -> 8073962.955
